[Event "January 2 Late 2024"]
[Site "https://www.chess.com"]
[Date "2024.01.02"]
[Round "8"]
[White "Novak, Ratko"]
[Black "Porat, Tori"]
[Result "0-1"]
[Board "156"]
[TimeControl "180+1"]
[WhiteFideId "14511827"]
[BlackFideId "30982626"]
[WhiteElo "2366"]
[BlackElo "2173"]
[WhiteTeam "CRO"]
[BlackTeam "USA"]
[WhiteClock "0:00:08"]
[BlackClock "0:00:12"]

1. d4 {[%clk 0:03:00]}  d5 {[%clk 0:02:59]} 2. c4 {[%clk 0:03:01]}  c6 {[%clk 0:02:58]} 3. cxd5 {[%clk 0:03:01]}  cxd5 {[%clk 0:02:58]} 4. Nc3 {[%clk 0:03:01]}  Nf6 {[%clk 0:02:58]} 5. f3 {[%clk 0:03:02]}  e6 {[%clk 0:02:58]} 6. e4 {[%clk 0:03:02]}  dxe4 {[%clk 0:02:58]} 7. fxe4 {[%clk 0:03:03]}  Bb4 {[%clk 0:02:52]} 8. Qd3 {[%clk 0:03:03]}  Nc6 {[%clk 0:02:49]} 9. Nf3 {[%clk 0:03:03]}  O-O {[%clk 0:02:46]} 10. Bg5 {[%clk 0:03:03]}  h6 {[%clk 0:02:38]} 11. Bh4 {[%clk 0:03:02]}  Be7 {[%clk 0:02:12]} 12. Rd1 {[%clk 0:02:59]}  Nb4 {[%clk 0:02:09]} 13. Qb1 {[%clk 0:02:57]}  b6 {[%clk 0:01:53]} 14. a3 {[%clk 0:02:57]}  Nc6 {[%clk 0:01:52]} 15. Bb5 {[%clk 0:02:49]}  Bb7 {[%clk 0:01:51]} 16. O-O {[%clk 0:02:42]}  Ng4 {[%clk 0:01:50]} 17. Bxe7 {[%clk 0:02:32]}  Qxe7 {[%clk 0:01:49]} 18. Qc1 {[%clk 0:02:18]}  Rac8 {[%clk 0:01:42]} 19. e5 {[%clk 0:02:16]}  h5 {[%clk 0:01:29]} 20. Qf4 {[%clk 0:01:51]}  a6 {[%clk 0:01:19]} 21. Bd3 {[%clk 0:01:45]}  Na5 {[%clk 0:01:05]} 22. Ne4 {[%clk 0:01:41]}  Bd5 {[%clk 0:00:45]} 23. Nd6 {[%clk 0:01:29]}  Rc7 {[%clk 0:00:40]} 24. Bxa6 {[%clk 0:01:24]}  f6 {[%clk 0:00:38]} 25. Nh4 {[%clk 0:00:57]}  fxe5 {[%clk 0:00:32]} 26. Qxf8+ {[%clk 0:00:56]}  Qxf8 {[%clk 0:00:32]} 27. Rxf8+ {[%clk 0:00:56]}  Kxf8 {[%clk 0:00:32]} 28. Ng6+ {[%clk 0:00:56]}  Kg8 {[%clk 0:00:30]} 29. Nxe5 {[%clk 0:00:43]}  Nxe5 {[%clk 0:00:26]} 30. dxe5 {[%clk 0:00:43]}  Nb3 {[%clk 0:00:24]} 31. h3 {[%clk 0:00:20]}  Rc2 {[%clk 0:00:23]} 32. Bf1 {[%clk 0:00:20]}  Rxb2 {[%clk 0:00:23]} 33. Rd3 {[%clk 0:00:12]}  Nc5 {[%clk 0:00:22]} 34. Rg3 {[%clk 0:00:12]}  Rb1 {[%clk 0:00:21]} 35. Kf2 {[%clk 0:00:11]}  Rb2+ {[%clk 0:00:20]} 36. Kg1 {[%clk 0:00:11]}  Rb1 {[%clk 0:00:19]} 37. Kf2 {[%clk 0:00:10]}  Rb2+ {[%clk 0:00:20]} 38. Ke1 {[%clk 0:00:10]}  Rb1+ {[%clk 0:00:20]} 39. Ke2 {[%clk 0:00:11]}  Rb2+ {[%clk 0:00:20]} 40. Ke3 {[%clk 0:00:10]}  Rb3+ {[%clk 0:00:20]} 41. Kf4 {[%clk 0:00:11]}  Rb1 {[%clk 0:00:17]} 42. Bc4 {[%clk 0:00:10]}  Bxc4 {[%clk 0:00:16]} 43. Nxc4 {[%clk 0:00:10]}  Rf1+ {[%clk 0:00:16]} 44. Kg5 {[%clk 0:00:10]}  Rf5+ {[%clk 0:00:15]} 45. Kg6 {[%clk 0:00:11]}  Nd7 {[%clk 0:00:12]} 46. Re3 {[%clk 0:00:08]}  Nf8# {[%clk 0:00:12]} 0-1

[Event "January 2 Late 2024"]
[Site "https://www.chess.com"]
[Date "2024.01.02"]
[Round "8"]
[White "Novikova, Margarita"]
[Black "Silvestre, Christian"]
[Result "1-0"]
[Board "160"]
[TimeControl "180+1"]
[WhiteFideId "14109689"]
[BlackFideId "30956269"]
[WhiteElo "2156"]
[BlackElo "2306"]
[WhiteTeam "GER"]
[BlackTeam "USA"]
[WhiteClock "0:01:47"]
[BlackClock "0:01:39"]

1. e4 {[%clk 0:02:58]}  c5 {[%clk 0:02:57]} 2. Nc3 {[%clk 0:02:58]}  d6 {[%clk 0:02:57]} 3. d3 {[%clk 0:02:58]}  g6 {[%clk 0:02:56]} 4. g3 {[%clk 0:02:58]}  Bg7 {[%clk 0:02:56]} 5. Be3 {[%clk 0:02:58]}  Nf6 {[%clk 0:02:57]} 6. Qd2 {[%clk 0:02:56]}  h5 {[%clk 0:02:58]} 7. h4 {[%clk 0:02:56]}  Nc6 {[%clk 0:02:58]} 8. f3 {[%clk 0:02:55]}  a6 {[%clk 0:02:58]} 9. Nd1 {[%clk 0:02:55]}  b5 {[%clk 0:02:57]} 10. c3 {[%clk 0:02:55]}  b4 {[%clk 0:02:57]} 11. Bg2 {[%clk 0:02:54]}  Rb8 {[%clk 0:02:56]} 12. Ne2 {[%clk 0:02:54]}  bxc3 {[%clk 0:02:53]} 13. bxc3 {[%clk 0:02:54]}  Ne5 {[%clk 0:02:49]} 14. Nf2 {[%clk 0:02:51]}  Qa5 {[%clk 0:02:41]} 15. O-O {[%clk 0:02:49]}  O-O {[%clk 0:02:39]} 16. Rab1 {[%clk 0:02:48]}  Be6 {[%clk 0:02:37]} 17. Ra1 {[%clk 0:02:38]}  Rb5 {[%clk 0:02:20]} 18. a4 {[%clk 0:02:36]}  Rb3 {[%clk 0:02:18]} 19. f4 {[%clk 0:02:22]}  Neg4 {[%clk 0:02:15]} 20. Nxg4 {[%clk 0:02:22]}  Nxg4 {[%clk 0:02:16]} 21. f5 {[%clk 0:02:19]}  Nxe3 {[%clk 0:02:16]} 22. Qxe3 {[%clk 0:02:17]}  Bd7 {[%clk 0:02:10]} 23. fxg6 {[%clk 0:02:12]}  fxg6 {[%clk 0:02:11]} 24. Rxf8+ {[%clk 0:02:11]}  Bxf8 {[%clk 0:02:11]} 25. Qg5 {[%clk 0:02:05]}  Be8 {[%clk 0:02:11]} 26. e5 {[%clk 0:01:57]}  Bf7 {[%clk 0:02:10]} 27. e6 {[%clk 0:01:55]}  Be8 {[%clk 0:02:02]} 28. Be4 {[%clk 0:01:49]}  c4 {[%clk 0:01:39]} 29. Qxa5 {[%clk 0:01:47]} 1-0

[Event "January 2 Late 2024"]
[Site "https://www.chess.com"]
[Date "2024.01.02"]
[Round "8"]
[White "Skaric, Djuro"]
[Black "Ivanov, Aleksandr"]
[Result "1-0"]
[Board "161"]
[TimeControl "180+1"]
[WhiteFideId "934569"]
[BlackFideId "2092980"]
[WhiteElo "2286"]
[BlackElo "2154"]
[WhiteTeam "SRB"]
[BlackTeam "USA"]
[WhiteClock "0:01:28"]
[BlackClock "0:00:00"]

1. g3 {[%clk 0:03:00]}  d5 {[%clk 0:02:58]} 2. Bg2 {[%clk 0:03:00]}  c5 {[%clk 0:02:54]} 3. d3 {[%clk 0:03:01]}  e5 {[%clk 0:02:54]} 4. Nf3 {[%clk 0:03:02]}  Nc6 {[%clk 0:02:54]} 5. O-O {[%clk 0:03:02]}  Nf6 {[%clk 0:02:54]} 6. Nc3 {[%clk 0:03:03]}  d4 {[%clk 0:02:53]} 7. Ne4 {[%clk 0:03:02]}  Nxe4 {[%clk 0:02:49]} 8. dxe4 {[%clk 0:03:03]}  Be7 {[%clk 0:02:47]} 9. h3 {[%clk 0:03:03]}  O-O {[%clk 0:02:42]} 10. Ne1 {[%clk 0:03:03]}  Be6 {[%clk 0:02:36]} 11. f4 {[%clk 0:03:01]}  f6 {[%clk 0:02:34]} 12. f5 {[%clk 0:03:01]}  Bf7 {[%clk 0:02:34]} 13. Rf2 {[%clk 0:02:56]}  c4 {[%clk 0:02:32]} 14. Rf3 {[%clk 0:02:56]}  b5 {[%clk 0:02:30]} 15. Bf1 {[%clk 0:02:55]}  Qb6 {[%clk 0:02:28]} 16. Kg2 {[%clk 0:02:55]}  a5 {[%clk 0:02:26]} 17. g4 {[%clk 0:02:55]}  Bc5 {[%clk 0:02:11]} 18. h4 {[%clk 0:02:55]}  Kh8 {[%clk 0:02:10]} 19. Rg3 {[%clk 0:02:51]}  Rad8 {[%clk 0:01:54]} 20. Kh3 {[%clk 0:02:51]}  b4 {[%clk 0:01:40]} 21. Ng2 {[%clk 0:02:40]}  a4 {[%clk 0:01:39]} 22. b3 {[%clk 0:02:37]}  a3 {[%clk 0:01:33]} 23. Qe1 {[%clk 0:02:35]}  d3 {[%clk 0:01:29]} 24. exd3 {[%clk 0:02:34]}  Bf2 {[%clk 0:01:28]} 25. Qd1 {[%clk 0:02:30]}  Bxg3 {[%clk 0:01:27]} 26. Kxg3 {[%clk 0:02:30]}  cxd3 {[%clk 0:01:14]} 27. Bxd3 {[%clk 0:02:29]}  Nd4 {[%clk 0:01:06]} 28. Be3 {[%clk 0:02:29]}  Qc7 {[%clk 0:01:00]} 29. g5 {[%clk 0:02:27]}  Qc3 {[%clk 0:00:51]} 30. Ne1 {[%clk 0:02:09]}  Nxf5+ {[%clk 0:00:31]} 31. exf5 {[%clk 0:02:01]}  e4 {[%clk 0:00:31]} 32. Rb1 {[%clk 0:02:01]}  exd3 {[%clk 0:00:25]} 33. cxd3 {[%clk 0:02:00]}  Rfe8 {[%clk 0:00:22]} 34. Kf2 {[%clk 0:01:52]}  Qe5 {[%clk 0:00:16]} 35. Qf3 {[%clk 0:01:51]}  Bh5 {[%clk 0:00:15]} 36. Qf4 {[%clk 0:01:46]}  Qc3 {[%clk 0:00:14]} 37. Rc1 {[%clk 0:01:38]}  Qb2+ {[%clk 0:00:14]} 38. Rc2 {[%clk 0:01:38]}  Qb1 {[%clk 0:00:12]} 39. gxf6 {[%clk 0:01:29]}  gxf6 {[%clk 0:00:09]} 40. Qh6 {[%clk 0:01:29]}  Rxe3 {[%clk 0:00:00]} 41. Qxe3 {[%clk 0:01:28]} 1-0

[Event "January 2 Late 2024"]
[Site "https://www.chess.com"]
[Date "2024.01.02"]
[Round "8"]
[White "Desideri, Ricardo Maruchi"]
[Black "Delgado Kuffo, Andres"]
[Result "0-1"]
[Board "163"]
[TimeControl "180+1"]
[WhiteFideId "2110440"]
[BlackFideId "3600475"]
[WhiteElo "1995"]
[BlackElo "2262"]
[WhiteTeam "BRA"]
[BlackTeam "ECU"]
[WhiteClock "0:00:19"]
[BlackClock "0:01:00"]

1. e4 {[%clk 0:03:00]}  c5 {[%clk 0:02:58]} 2. Nf3 {[%clk 0:02:55]}  a6 {[%clk 0:02:57]} 3. d4 {[%clk 0:02:55]}  cxd4 {[%clk 0:02:56]} 4. Nxd4 {[%clk 0:02:56]}  Nf6 {[%clk 0:02:56]} 5. Bd3 {[%clk 0:02:53]}  Nc6 {[%clk 0:02:51]} 6. Nb3 {[%clk 0:02:51]}  d5 {[%clk 0:02:39]} 7. exd5 {[%clk 0:02:45]}  Nxd5 {[%clk 0:02:26]} 8. O-O {[%clk 0:02:43]}  Ndb4 {[%clk 0:02:22]} 9. Bc4 {[%clk 0:02:37]}  Qxd1 {[%clk 0:02:20]} 10. Rxd1 {[%clk 0:02:29]}  Nxc2 {[%clk 0:02:18]} 11. Na3 {[%clk 0:02:25]}  Nxa1 {[%clk 0:02:16]} 12. Nxa1 {[%clk 0:02:25]}  Bf5 {[%clk 0:02:03]} 13. Bf4 {[%clk 0:02:15]}  e6 {[%clk 0:01:53]} 14. Nb3 {[%clk 0:01:58]}  Rd8 {[%clk 0:01:49]} 15. Re1 {[%clk 0:01:45]}  Bb4 {[%clk 0:01:47]} 16. Rc1 {[%clk 0:01:28]}  O-O {[%clk 0:01:37]} 17. h3 {[%clk 0:01:23]}  Rc8 {[%clk 0:01:36]} 18. Nc2 {[%clk 0:00:40]}  Be7 {[%clk 0:01:15]} 19. Ne3 {[%clk 0:00:38]}  Bg6 {[%clk 0:01:12]} 20. Re1 {[%clk 0:00:29]}  Nb4 {[%clk 0:01:04]} 21. a3 {[%clk 0:00:28]}  Nc2 {[%clk 0:01:02]} 22. Nxc2 {[%clk 0:00:26]}  Rxc4 {[%clk 0:01:01]} 23. Ne3 {[%clk 0:00:19]}  Rxf4 {[%clk 0:01:00]} 0-1

[Event "January 2 Late 2024"]
[Site "https://www.chess.com"]
[Date "2024.01.02"]
[Round "8"]
[White "Carrillo Marval, Maria Angelica"]
[Black "Anna20240"]
[Result "1-0"]
[Board "166"]
[TimeControl "180+1"]
[WhiteFideId "3911853"]
[WhiteElo "2071"]
[BlackElo "1915"]
[WhiteTeam "PAN"]
[WhiteClock "0:00:15"]
[BlackClock "0:00:15"]

1. e4 {[%clk 0:02:58]}  c6 {[%clk 0:03:00]} 2. d4 {[%clk 0:02:57]}  d5 {[%clk 0:03:00]} 3. Nc3 {[%clk 0:02:58]}  dxe4 {[%clk 0:03:00]} 4. Nxe4 {[%clk 0:02:59]}  Bf5 {[%clk 0:03:01]} 5. Ng3 {[%clk 0:02:59]}  Bg6 {[%clk 0:03:01]} 6. Nf3 {[%clk 0:02:59]}  Nd7 {[%clk 0:03:00]} 7. h4 {[%clk 0:03:00]}  h6 {[%clk 0:03:01]} 8. h5 {[%clk 0:03:01]}  Bh7 {[%clk 0:03:01]} 9. Bd3 {[%clk 0:03:01]}  Ngf6 {[%clk 0:03:02]} 10. Bxh7 {[%clk 0:02:57]}  Nxh7 {[%clk 0:03:02]} 11. Bf4 {[%clk 0:02:52]}  Nhf6 {[%clk 0:02:57]} 12. Ne5 {[%clk 0:02:50]}  e6 {[%clk 0:02:55]} 13. Qd2 {[%clk 0:02:49]}  Nxe5 {[%clk 0:02:50]} 14. Bxe5 {[%clk 0:02:46]}  Nd5 {[%clk 0:02:42]} 15. Ne2 {[%clk 0:02:29]}  f6 {[%clk 0:02:31]} 16. Bg3 {[%clk 0:02:28]}  Bd6 {[%clk 0:02:30]} 17. Bxd6 {[%clk 0:02:28]}  Qxd6 {[%clk 0:02:30]} 18. Nc3 {[%clk 0:02:27]}  O-O-O {[%clk 0:02:27]} 19. O-O-O {[%clk 0:02:23]}  Nxc3 {[%clk 0:02:24]} 20. Qxc3 {[%clk 0:02:23]}  Kb8 {[%clk 0:02:15]} 21. Kb1 {[%clk 0:02:22]}  Qc7 {[%clk 0:02:11]} 22. Rhe1 {[%clk 0:02:19]}  Rhe8 {[%clk 0:02:10]} 23. Qh3 {[%clk 0:02:10]}  Rd6 {[%clk 0:02:08]} 24. c3 {[%clk 0:02:00]}  Qd7 {[%clk 0:02:05]} 25. Qg3 {[%clk 0:01:59]}  e5 {[%clk 0:02:02]} 26. Kc1 {[%clk 0:01:44]}  Rd8 {[%clk 0:01:59]} 27. Re2 {[%clk 0:01:37]}  exd4 {[%clk 0:01:57]} 28. Rxd4 {[%clk 0:01:36]}  Kc8 {[%clk 0:01:53]} 29. Red2 {[%clk 0:01:20]}  Rxd4 {[%clk 0:01:44]} 30. Rxd4 {[%clk 0:01:21]}  Qc7 {[%clk 0:01:42]} 31. Qg4+ {[%clk 0:00:54]}  Rd7 {[%clk 0:01:31]} 32. Kc2 {[%clk 0:00:49]}  Kd8 {[%clk 0:01:28]} 33. Rxd7+ {[%clk 0:00:44]}  Qxd7 {[%clk 0:01:28]} 34. Qxd7+ {[%clk 0:00:44]}  Kxd7 {[%clk 0:01:28]} 35. Kd3 {[%clk 0:00:45]}  Kd6 {[%clk 0:01:28]} 36. Kd4 {[%clk 0:00:44]}  b5 {[%clk 0:01:25]} 37. b4 {[%clk 0:00:40]}  f5 {[%clk 0:01:16]} 38. f4 {[%clk 0:00:36]}  a6 {[%clk 0:01:14]} 39. g3 {[%clk 0:00:28]}  a5 {[%clk 0:01:04]} 40. a3 {[%clk 0:00:13]}  a4 {[%clk 0:00:57]} 41. c4 {[%clk 0:00:13]}  bxc4 {[%clk 0:00:20]} 42. Kxc4 {[%clk 0:00:13]}  Ke6 {[%clk 0:00:18]} 43. Kc5 {[%clk 0:00:13]}  Kd7 {[%clk 0:00:18]} 44. Kc4 {[%clk 0:00:12]}  Kd6 {[%clk 0:00:17]} 45. Kd4 {[%clk 0:00:13]}  Ke6 {[%clk 0:00:16]} 46. Kc5 {[%clk 0:00:10]}  Kd7 {[%clk 0:00:17]} 47. b5 {[%clk 0:00:10]}  cxb5 {[%clk 0:00:15]} 48. Kxb5 {[%clk 0:00:11]}  Ke6 {[%clk 0:00:14]} 49. Kxa4 {[%clk 0:00:12]}  Kf6 {[%clk 0:00:15]} 50. Kb5 {[%clk 0:00:12]}  g6 {[%clk 0:00:16]} 51. hxg6 {[%clk 0:00:13]}  Kxg6 {[%clk 0:00:16]} 52. a4 {[%clk 0:00:14]}  h5 {[%clk 0:00:17]} 53. a5 {[%clk 0:00:14]}  Kf6 {[%clk 0:00:16]} 54. a6 {[%clk 0:00:15]}  Ke6 {[%clk 0:00:15]} 55. a7 {[%clk 0:00:15]} 1-0

[Event "January 2 Late 2024"]
[Site "https://www.chess.com"]
[Date "2024.01.02"]
[Round "8"]
[White "Petersson, Kjell"]
[Black "Piscicelli, Daniel Orlando"]
[Result "1-0"]
[Board "169"]
[TimeControl "180+1"]
[WhiteFideId "1705148"]
[BlackFideId "101958"]
[WhiteElo "2108"]
[BlackElo "2387"]
[WhiteTeam "SWE"]
[BlackTeam "ARG"]
[WhiteClock "0:01:43"]
[BlackClock "0:01:34"]

1. d4 {[%clk 0:03:00]}  Nf6 {[%clk 0:02:59]} 2. Bf4 {[%clk 0:03:01]}  g6 {[%clk 0:02:59]} 3. Nc3 {[%clk 0:03:00]}  Bg7 {[%clk 0:02:58]} 4. e4 {[%clk 0:03:00]}  O-O {[%clk 0:02:56]} 5. Qd2 {[%clk 0:03:01]}  d5 {[%clk 0:02:53]} 6. e5 {[%clk 0:02:54]}  Ne4 {[%clk 0:02:53]} 7. Nxe4 {[%clk 0:02:50]}  dxe4 {[%clk 0:02:53]} 8. O-O-O {[%clk 0:02:48]}  Bf5 {[%clk 0:02:48]} 9. Bh6 {[%clk 0:02:45]}  Nd7 {[%clk 0:02:43]} 10. h4 {[%clk 0:02:43]}  c5 {[%clk 0:02:42]} 11. h5 {[%clk 0:02:38]}  f6 {[%clk 0:02:22]} 12. g4 {[%clk 0:02:11]}  Bxg4 {[%clk 0:02:14]} 13. hxg6 {[%clk 0:01:54]}  Bxd1 {[%clk 0:01:52]} 14. Bxg7 {[%clk 0:01:49]}  Kxg7 {[%clk 0:01:38]} 15. Qh6+ {[%clk 0:01:43]}  Kg8 {[%clk 0:01:34]} 16. Qxh7# {[%clk 0:01:43]} 1-0

[Event "January 2 Late 2024"]
[Site "https://www.chess.com"]
[Date "2024.01.02"]
[Round "8"]
[White "Sanchez Alvares, Kelvin Antonio"]
[Black "De Souza, Arthur Olintho"]
[Result "1-0"]
[Board "170"]
[TimeControl "180+1"]
[WhiteFideId "3906680"]
[BlackFideId "2116200"]
[WhiteElo "2387"]
[BlackElo "2074"]
[WhiteTeam "VEN"]
[BlackTeam "BRA"]
[WhiteClock "0:01:00"]
[BlackClock "0:00:00"]

1. e4 {[%clk 0:03:00]}  c5 {[%clk 0:02:59]} 2. Nf3 {[%clk 0:03:01]}  Nc6 {[%clk 0:02:59]} 3. d4 {[%clk 0:03:02]}  cxd4 {[%clk 0:03:00]} 4. Nxd4 {[%clk 0:03:02]}  Nf6 {[%clk 0:03:00]} 5. Nc3 {[%clk 0:03:02]}  e5 {[%clk 0:03:00]} 6. Ndb5 {[%clk 0:03:03]}  d6 {[%clk 0:03:00]} 7. Bg5 {[%clk 0:03:02]}  a6 {[%clk 0:03:00]} 8. Na3 {[%clk 0:03:02]}  b5 {[%clk 0:02:59]} 9. Nd5 {[%clk 0:03:03]}  Be7 {[%clk 0:02:59]} 10. Bxf6 {[%clk 0:03:03]}  Bxf6 {[%clk 0:03:00]} 11. c4 {[%clk 0:03:02]}  b4 {[%clk 0:02:59]} 12. Nc2 {[%clk 0:03:02]}  a5 {[%clk 0:02:59]} 13. g3 {[%clk 0:03:01]}  O-O {[%clk 0:02:59]} 14. Bg2 {[%clk 0:02:59]}  Bg5 {[%clk 0:02:59]} 15. O-O {[%clk 0:02:58]}  Ne7 {[%clk 0:02:58]} 16. f4 {[%clk 0:02:52]}  Nxd5 {[%clk 0:02:54]} 17. Qxd5 {[%clk 0:02:45]}  Be6 {[%clk 0:02:51]} 18. Qd3 {[%clk 0:02:46]}  exf4 {[%clk 0:02:48]} 19. gxf4 {[%clk 0:02:43]}  Qb6+ {[%clk 0:02:48]} 20. Kh1 {[%clk 0:02:21]}  Bf6 {[%clk 0:02:44]} 21. Rab1 {[%clk 0:02:13]}  Qc5 {[%clk 0:02:36]} 22. Ne3 {[%clk 0:02:05]}  Bd4 {[%clk 0:02:32]} 23. Nc2 {[%clk 0:02:02]}  Bf6 {[%clk 0:01:11]} 24. b3 {[%clk 0:01:56]}  Bd7 {[%clk 0:00:12]} 25. Rbd1 {[%clk 0:01:49]}  Ra6 {[%clk 0:00:10]} 26. Ne3 {[%clk 0:01:25]}  Re8 {[%clk 0:00:06]} 27. Nd5 {[%clk 0:01:20]}  Bh4 {[%clk 0:00:05]} 28. f5 {[%clk 0:01:11]}  f6 {[%clk 0:00:04]} 29. Qh3 {[%clk 0:01:03]}  Bg5 {[%clk 0:00:03]} 30. Qg3 {[%clk 0:01:02]}  Re5 {[%clk 0:00:00]} 31. h4 {[%clk 0:01:00]} 1-0

[Event "January 2 Late 2024"]
[Site "https://www.chess.com"]
[Date "2024.01.02"]
[Round "8"]
[White "Oliveira, Tiago Batista"]
[Black "Kubatko, Ivan"]
[Result "0-1"]
[Board "171"]
[TimeControl "180+1"]
[WhiteFideId "2108291"]
[BlackFideId "24111473"]
[WhiteElo "2026"]
[BlackElo "2326"]
[WhiteTeam "BRA"]
[BlackTeam "RUS"]
[WhiteClock "0:00:00"]
[BlackClock "0:00:08"]

1. d4 {[%clk 0:03:00]}  Nf6 {[%clk 0:02:59]} 2. c4 {[%clk 0:03:00]}  Nc6 {[%clk 0:02:58]} 3. d5 {[%clk 0:02:56]}  Ne5 {[%clk 0:02:58]} 4. Qc2 {[%clk 0:02:54]}  e6 {[%clk 0:02:56]} 5. e4 {[%clk 0:02:53]}  Bc5 {[%clk 0:02:38]} 6. Be2 {[%clk 0:02:40]}  d6 {[%clk 0:02:37]} 7. Nf3 {[%clk 0:02:37]}  Ng6 {[%clk 0:02:29]} 8. O-O {[%clk 0:02:35]}  e5 {[%clk 0:02:29]} 9. a3 {[%clk 0:02:17]}  a5 {[%clk 0:02:28]} 10. Nc3 {[%clk 0:02:12]}  O-O {[%clk 0:02:25]} 11. Rb1 {[%clk 0:02:00]}  Bd7 {[%clk 0:02:00]} 12. b4 {[%clk 0:01:58]}  axb4 {[%clk 0:02:01]} 13. axb4 {[%clk 0:01:58]}  Bb6 {[%clk 0:02:00]} 14. Bg5 {[%clk 0:01:16]}  h6 {[%clk 0:01:59]} 15. Bxf6 {[%clk 0:01:14]}  Qxf6 {[%clk 0:02:00]} 16. c5 {[%clk 0:01:15]}  dxc5 {[%clk 0:01:36]} 17. bxc5 {[%clk 0:01:09]}  Bxc5 {[%clk 0:01:37]} 18. Nb5 {[%clk 0:00:09]}  Bxb5 {[%clk 0:01:31]} 19. Bxb5 {[%clk 0:00:09]}  b6 {[%clk 0:01:31]} 20. Bc6 {[%clk 0:00:08]}  Ra3 {[%clk 0:01:30]} 21. Nd2 {[%clk 0:00:07]}  Bd4 {[%clk 0:01:12]} 22. Nb3 {[%clk 0:00:07]}  h5 {[%clk 0:00:59]} 23. Nxd4 {[%clk 0:00:07]}  exd4 {[%clk 0:01:00]} 24. Ra1 {[%clk 0:00:04]}  Rc3 {[%clk 0:00:58]} 25. Qb2 {[%clk 0:00:03]}  Ne5 {[%clk 0:00:58]} 26. f3 {[%clk 0:00:03]}  Nd3 {[%clk 0:00:54]} 27. Qd2 {[%clk 0:00:03]}  g5 {[%clk 0:00:32]} 28. Rad1 {[%clk 0:00:02]}  Kg7 {[%clk 0:00:31]} 29. g3 {[%clk 0:00:02]}  Ne5 {[%clk 0:00:23]} 30. f4 {[%clk 0:00:02]}  Nc4 {[%clk 0:00:22]} 31. fxg5 {[%clk 0:00:01]}  Qe5 {[%clk 0:00:22]} 32. Qg2 {[%clk 0:00:01]}  Ne3 {[%clk 0:00:21]} 33. Qf2 {[%clk 0:00:01]}  Nxd1 {[%clk 0:00:13]} 34. Rxd1 {[%clk 0:00:00]}  Re3 {[%clk 0:00:08]} 0-1

[Event "January 2 Late 2024"]
[Site "https://www.chess.com"]
[Date "2024.01.02"]
[Round "8"]
[White "Minina, Veronika"]
[Black "Thake, Conrad"]
[Result "1-0"]
[Board "172"]
[TimeControl "180+1"]
[WhiteFideId "4174780"]
[BlackFideId "5602947"]
[WhiteElo "2248"]
[BlackElo "1878"]
[WhiteTeam "RUS"]
[BlackTeam "MLT"]
[WhiteClock "0:01:05"]
[BlackClock "0:00:00"]

1. Nf3 {[%clk 0:03:00]}  Nf6 {[%clk 0:02:58]} 2. g3 {[%clk 0:02:55]}  g6 {[%clk 0:02:57]} 3. Bg2 {[%clk 0:02:55]}  Bg7 {[%clk 0:02:57]} 4. O-O {[%clk 0:02:56]}  O-O {[%clk 0:02:57]} 5. c4 {[%clk 0:02:56]}  c5 {[%clk 0:02:56]} 6. Nc3 {[%clk 0:02:56]}  Nc6 {[%clk 0:02:56]} 7. d4 {[%clk 0:02:55]}  cxd4 {[%clk 0:02:54]} 8. Nxd4 {[%clk 0:02:56]}  Re8 {[%clk 0:02:18]} 9. e3 {[%clk 0:02:46]}  Nxd4 {[%clk 0:02:17]} 10. Qxd4 {[%clk 0:02:39]}  d6 {[%clk 0:02:14]} 11. Qd3 {[%clk 0:02:33]}  a6 {[%clk 0:02:06]} 12. b3 {[%clk 0:02:32]}  Qc7 {[%clk 0:01:58]} 13. Bd2 {[%clk 0:02:27]}  Be6 {[%clk 0:01:43]} 14. Rac1 {[%clk 0:02:26]}  Rad8 {[%clk 0:01:41]} 15. e4 {[%clk 0:02:09]}  Nd7 {[%clk 0:01:07]} 16. Nd5 {[%clk 0:02:07]}  Qb8 {[%clk 0:01:04]} 17. Ba5 {[%clk 0:01:58]}  b6 {[%clk 0:00:56]} 18. Bd2 {[%clk 0:01:53]}  Nc5 {[%clk 0:00:56]} 19. Qe2 {[%clk 0:01:52]}  Bxd5 {[%clk 0:00:49]} 20. cxd5 {[%clk 0:01:43]}  b5 {[%clk 0:00:46]} 21. Rc2 {[%clk 0:01:31]}  Rc8 {[%clk 0:00:43]} 22. Rfc1 {[%clk 0:01:32]}  Rc7 {[%clk 0:00:38]} 23. Ba5 {[%clk 0:01:31]}  Rcc8 {[%clk 0:00:35]} 24. Bd2 {[%clk 0:01:29]}  e6 {[%clk 0:00:33]} 25. dxe6 {[%clk 0:01:24]}  fxe6 {[%clk 0:00:28]} 26. Bf4 {[%clk 0:01:11]}  Qb6 {[%clk 0:00:00]} 27. b4 {[%clk 0:01:05]} 1-0